bitfinex-derivatives/quotes_ETHF0:USTF0_20241024
["timestamp","ask_amount","ask_price","bid_price","bid_amount"]
[1729792819196,4.4938052,2521.9,2521.8,0.39683]
[1729792819395,3.2078,2522.2,2521.7,0.4461]
[1729792819590,1.2860052,2521.8,2521.7,0.4461]
[1729792819796,1.2860052,2521.8,2521.7,0.84295]
[1729792821390,1.2860052,2521.8,2521.7,0.4461]
[1729792821592,1.2860052,2521.8,2521.7,0.39685]
[1729792822504,1.2860052,2521.8,2521.7,0.82265]
[1729792823091,4.4938052,2521.9,2521.7,5.6774052]
[1729792823295,4.4938052,2521.9,2521.8,2.1086352]
[1729792823604,4.4938052,2521.9,2521.8,0.82263]
[1729792823802,4.4938052,2521.9,2521.8,4.78823]
[1729792823999,3.92720511,2522.6,2521.8,5.6774052]
[1729792824303,4.33934577,2522.5,2522.1,0.99194]
[1729792824498,4.33934577,2522.5,2522.4,0.39673]
[1729792824705,3.2078,2522.6,2522.5,0.39672]
[1729792825097,2.7870802,2522.9,2522.8,0.39668]
[1729792826504,5.9948802,2523.1,2523.0,0.39665]
[1729792826699,3.2078,2523.1,2523.0,0.39665]
[1729792828508,2.7870802,2523.3,2523.1,0.39662]
[1729792828708,2.7870802,2523.3,2522.8,1.41289]
[1729792828913,3.1836802,2523.3,2522.8,1.41289]
[1729792829102,4.44020651,2523.2,2523.1,0.39662]
[1729792829506,3.2078,2523.4,2523.3,0.3966]
[1729792830009,3.60438,2523.4,2523.3,0.3966]
[1729792830203,3.60439,2523.4,2523.2,0.3966]
[1729792830811,3.2078,2523.4,2523.3,0.3966]
[1729792835011,0.39654,2523.7,2523.6,0.39654]
[1729792835616,5.9948802,2523.8,2523.7,0.39654]
[1729792835818,3.2078,2523.8,2523.7,0.39654]
[1729792836114,7.58369261,2523.8,2523.7,0.39654]
[1729792837008,7.98021261,2523.8,2523.7,0.39654]
[1729792837314,0.39654,2523.7,2523.5,0.39656]
[1729792837508,2.7870802,2523.6,2523.3,0.4029]
[1729792837713,7.7567542,2523.6,2523.4,0.39657]
[1729792838108,7.7567542,2523.6,2523.3,0.4029]
[1729792838109,0.39657,2523.5,2523.3,0.79949]
[1729792838411,0.39657,2523.5,2523.3,0.39659]
[1729792838412,4.32001014,2523.4,2523.3,0.39659]
[1729792842121,4.71659014,2523.4,2523.3,0.39659]
[1729792842623,4.32001014,2523.4,2523.3,0.39659]
[1729792842822,4.71659014,2523.4,2523.3,0.39659]
[1729792843218,4.32001014,2523.4,2523.3,0.39659]
[1729792843721,4.71659014,2523.4,2523.3,0.39659]
[1729792846014,4.32001014,2523.4,2523.3,0.39659]
[1729792846220,4.71659014,2523.4,2523.3,0.39659]
[1729792846718,4.71659014,2523.4,2523.2,0.4447]
[1729792846719,0.3966,2523.3,2523.2,0.8413]
[1729792846921,0.3966,2523.3,2523.2,0.3966]
[1729792847518,4.71660014,2523.4,2523.3,0.3966]
[1729792847718,4.71661014,2523.4,2523.3,0.3966]
[1729792850123,0.39661,2523.3,2523.2,0.39661]
[1729792850430,0.3966,2523.3,2523.2,0.39661]
[1729792851825,4.32001014,2523.4,2522.9,0.8441]
[1729792852029,0.39665,2523.0,2522.9,1.24075]
[1729792852228,3.2078,2523.2,2522.7,0.99174]
[1729792852229,0.39668,2522.8,2522.7,0.39668]
[1729792852424,3.60447,2522.9,2522.8,0.39668]
[1729792852824,11.41535409,2522.9,2522.5,0.4403]
[1729792853025,0.39668,2522.8,2522.7,0.39668]
[1729792853224,7.84802409,2522.9,2522.8,0.39668]
[1729792853527,7.84802409,2522.9,2522.5,1.43211]
[1729792853528,7.45135409,2522.9,2522.5,1.43211]
[1729792853828,0.39668,2522.8,2522.7,0.39668]
[1729792854029,7.45135409,2522.9,2522.5,1.43211]
[1729792854231,7.84802409,2522.9,2522.8,0.39668]
[1729792854624,11.81202409,2522.9,2522.8,0.39668]
[1729792855431,0.39669,2522.8,2522.7,0.39669]
[1729792855624,0.3967,2522.7,2522.6,0.3967]
[1729792857031,0.39671,2522.6,2522.5,0.83702]
[1729792857227,3.60451,2522.6,2522.5,0.4403]
[1729792857426,11.84727063,2522.6,2522.0,4.19981]
[1729792857735,0.39675,2522.4,2522.3,0.39674]
[1729792857929,0.39676,2522.3,2522.2,0.80336]
[1729792858133,3.60456,2522.3,2522.2,0.4066]
[1729792858528,3.60456,2522.3,2522.2,0.80337]
[1729792858728,3.2078,2522.3,2522.2,0.80337]
[1729792859036,3.60456,2522.3,2522.2,0.80337]
[1729792859331,3.2078,2522.3,2522.2,0.80337]
[1729792859634,3.60456,2522.3,2522.2,0.80337]
[1729792860226,3.2078,2522.3,2522.2,0.80337]
[1729792861234,3.2078,2522.3,2522.2,4.76817]
[1729792861429,3.6524802,2522.9,2522.5,0.39672]
[1729792861430,3.2078,2522.6,2522.5,0.39672]
[1729792862726,0.39673,2522.5,2522.2,0.4066]
[1729792862932,3.2078,2522.6,2522.2,0.4066]
[1729792863138,3.2078,2522.6,2522.5,0.39672]
[1729792863728,0.39673,2522.5,2522.4,0.39673]
[1729792863928,0.39673,2522.5,2522.2,0.4066]
[1729792863929,0.39672,2522.5,2522.3,0.39675]
[1729792864131,3.2078,2522.6,2522.2,0.4066]
[1729792864344,4.52067761,2522.4,2522.2,0.80336]
[1729792864731,0.39675,2522.4,2522.2,0.80336]
[1729792864932,0.39675,2522.4,2522.2,0.4066]
[1729792865134,0.39675,2522.4,2522.3,0.39676]
[1729792866041,0.4116,2522.5,2522.2,0.4066]
[1729792866346,4.55832549,2522.4,2522.2,0.4066]
[1729792866638,3.2078,2522.6,2522.5,0.39672]
[1729792869535,3.60451,2522.6,2522.5,0.39672]
[1729792869938,3.2078,2522.6,2522.5,0.39672]
[1729792874735,3.60451,2522.6,2522.5,0.39672]
[1729792875248,3.2078,2522.6,2522.5,0.39672]
[1729792875746,3.60451,2522.6,2522.5,0.39672]
[1729792876443,0.39671,2522.6,2522.4,0.4115]
[1729792876644,2.7870802,2522.7,2522.4,0.4115]
[1729792876839,0.39672,2522.6,2522.5,0.4427]
[1729792877847,2.7870802,2522.7,2522.5,0.4427]
[1729792878244,0.39671,2522.6,2522.5,0.4427]
[1729792878551,2.7870802,2522.7,2522.5,0.4427]
[1729792878948,3.1837802,2522.7,2522.5,0.83942]
[1729792879250,2.7870802,2522.7,2522.5,0.4427]
[1729792879454,3.60451,2522.6,2522.5,0.4427]
[1729792880752,0.39674,2522.4,2522.2,0.39676]
[1729792880945,4.73083278,2522.5,2522.2,0.39676]
[1729792881352,0.39676,2522.3,2522.2,0.39676]
[1729792882056,0.39675,2522.4,2522.3,0.39675]
[1729792882256,4.73083278,2522.5,2522.0,1.81901]
[1729792882455,0.39676,2522.3,2522.2,0.39676]
[1729792882958,0.39676,2522.4,2522.3,0.39675]
[1729792883152,0.39676,2522.4,2522.0,1.81901]
[1729792883355,0.39676,2522.4,2522.3,0.39676]
[1729792884851,4.32353278,2522.5,2522.4,0.39674]
[1729792886255,3.2078,2522.6,2522.5,0.39672]
[1729792890057,3.2078,2522.6,2522.5,0.83662]
[1729792891258,3.2078,2522.6,2522.5,4.80062]
[1729792891662,3.2078,2522.9,2522.5,4.4039]
[1729792891870,0.39664,2523.1,2523.0,0.39663]
[1729792892164,3.60443,2523.2,2523.1,0.39663]
[1729792893565,0.39664,2523.1,2523.0,0.39664]
[1729792893758,0.80104,2523.1,2523.0,0.39664]
[1729792894469,0.4044,2523.1,2523.0,0.39664]
[1729792895166,0.80103,2523.1,2523.0,0.39664]
[1729792895355,0.80103,2523.1,2522.9,0.8265]
[1729792895554,0.39666,2522.9,2522.8,0.82096]
[1729792895958,4.65011735,2523.1,2522.8,0.4243]
[1729792896157,0.39665,2523.0,2522.9,0.39665]
[1729792897260,5.04675735,2523.1,2523.0,0.39665]
[1729792899368,4.65011735,2523.1,2522.8,0.4243]
[1729792899675,3.2078,2524.1,2523.0,8.7819604]
[1729792899966,10.30661373,2525.0,2524.7,0.39637]
[1729792899967,4.36778267,2524.8,2524.7,0.39637]
[1729792900165,4.80268267,2524.8,2524.7,0.39637]
[1729792900465,3.2078,2525.0,2524.8,0.39636]
[1729792900466,4.15985268,2524.9,2524.8,0.39636]
[1729792900667,3.2078,2525.0,2524.9,0.39635]
[1729792900874,1.28506921,2525.3,2524.9,4.49286921]
[1729792901064,1.28506921,2525.3,2525.2,0.3963]
[1729792901666,1.70366921,2525.4,2525.3,0.39628]
[1729792901869,0.4186,2525.4,2525.3,0.39628]
[1729792902069,1.70366921,2525.4,2525.3,0.39628]
[1729792902371,0.4186,2525.4,2525.3,0.39628]
[1729792903964,5.99173762,2525.7,2524.9,4.19865]
[1729792904467,5.99173762,2525.7,2525.4,0.39626]
[1729792904468,4.36091362,2525.6,2525.4,0.39626]
[1729792904669,4.36091362,2525.6,2524.9,4.19865]
[1729792904968,0.4143,2525.9,2525.6,0.39623]
[1729792905372,4.57342256,2525.8,2525.6,0.39623]
[1729792905568,0.4143,2525.9,2525.7,0.39622]
[1729792905769,0.4143,2525.9,2525.7,0.39621]
[1729792906074,0.4143,2525.9,2525.7,0.39622]
[1729792906274,0.4143,2525.9,2525.6,2.78393762]
[1729792906774,0.4143,2525.9,2525.7,0.39622]
[1729792907573,0.4143,2525.9,2525.6,2.78393762]
[1729792907869,0.4143,2525.9,2525.8,0.39621]
[1729792909071,3.2078,2526.0,2525.9,0.39619]
[1729792909467,7.71858346,2526.0,2525.6,2.78393762]
[1729792909662,7.71858346,2526.0,2525.8,0.3962]
[1729792910076,7.71858346,2526.0,2525.6,2.78393762]
[1729792910272,7.71858346,2526.0,2525.5,3.2078]
[1729792910273,7.71858346,2526.0,2525.8,2.78393762]
[1729792910472,7.71858346,2526.0,2525.8,3.18012762]
[1729792911267,7.71858346,2526.0,2525.9,0.39619]
[1729792911471,3.2078,2526.0,2525.9,0.39619]
[1729792912667,0.4349,2526.1,2525.9,0.39619]
[1729792913879,0.83106,2526.1,2525.9,0.39619]
[1729792914272,0.83106,2526.1,2525.8,5.99173762]
[1729792914273,0.4349,2526.1,2525.8,5.99173762]
[1729792914474,0.3962,2525.9,2525.7,0.39622]
[1729792914784,0.39621,2525.8,2525.6,0.39622]
[1729792914972,0.39622,2525.7,2525.5,0.39624]
[1729792915467,0.39621,2525.8,2525.6,0.39623]
[1729792915669,0.39624,2525.7,2525.5,3.18018762]
[1729792916067,7.5443532,2526.0,2525.5,3.18018762]
[1729792916276,0.39623,2525.7,2525.6,0.39624]
[1729792918171,7.5443532,2526.0,2525.5,2.78393762]
[1729792918373,8.5348132,2526.0,2525.5,2.78393762]
[1729792918580,0.39623,2525.7,2525.6,0.39622]
[1729792920177,7.5443532,2526.0,2525.5,2.78393762]
[1729792920374,0.39621,2525.8,2525.7,0.3962]
[1729792921176,0.3962,2525.9,2525.8,0.39619]
[1729792921377,3.2078,2526.0,2525.5,3.77456762]
[1729792921581,0.3962,2525.9,2525.8,0.3962]
[1729792922381,0.39619,2525.9,2525.8,0.3962]
[1729792922983,3.2078,2526.0,2525.8,0.3962]
[1729792923178,3.60399,2526.0,2525.8,0.3962]
[1729792923676,3.60399,2526.0,2525.9,0.39619]
[1729792924182,3.2078,2526.0,2525.9,0.39619]
[1729792924580,0.39619,2525.9,2525.8,0.3962]
[1729792925177,3.2078,2526.0,2525.7,0.39622]
[1729792925377,3.2078,2526.0,2525.8,0.3962]
[1729792925378,0.3962,2525.9,2525.8,0.3962]
[1729792926472,3.60399,2526.0,2525.6,0.39624]
[1729792926677,3.60399,2526.0,2525.8,0.39619]
[1729792926877,3.60399,2526.0,2525.9,0.39619]
[1729792927085,0.39619,2525.9,2525.8,0.3962]
[1729792928283,3.2078,2526.0,2525.5,3.77456762]
[1729792928586,3.60399,2526.0,2525.9,0.39619]
[1729792928786,0.3962,2525.9,2525.8,0.3962]
[1729792928982,0.3962,2525.9,2525.5,3.77456762]
[1729792928983,3.2078,2526.0,2525.5,3.77456762]
[1729792929182,3.60399,2526.0,2525.5,3.77456762]
[1729792929484,3.60399,2526.0,2525.9,0.39619]
[1729792929876,3.2078,2526.0,2525.9,0.39619]
[1729792930084,0.4349,2526.1,2525.9,6.74313762]
[1729792930290,3.6179,2526.3,2526.2,0.39614]
[1729792931789,4.01404,2526.3,2525.9,2.78393762]
[1729792931982,0.39614,2526.2,2526.1,0.39615]
[1729792933292,0.39617,2526.1,2526.0,0.39617]
[1729792938090,0.3962,2525.9,2525.8,0.39618]
[1729792939492,0.4072,2526.0,2525.7,6.41423762]
[1729792939790,0.80338,2526.0,2525.9,0.39619]
[1729792945194,0.4072,2526.0,2525.6,0.99059]
[1729792945398,0.39624,2525.7,2525.6,0.39621]
[1729792945596,0.39622,2525.7,2525.6,0.1239104]
[1729792946096,0.39625,2525.5,2525.4,3.2078]
[1729792946396,3.2078,2525.9,2525.4,3.33172152]
[1729792946605,3.60401,2525.9,2525.7,0.39621]
[1729792946804,0.39621,2525.8,2525.7,0.39621]
[1729792947097,0.39621,2525.8,2525.7,0.52013168]
[1729792947393,3.2078,2525.9,2525.7,0.39622]
[1729792947594,3.604,2525.9,2525.8,0.39621]
[1729792947902,3.604,2525.9,2525.7,0.39621]
[1729792948099,3.2078,2525.9,2525.6,2.78393762]
[1729792948395,0.39622,2525.7,2525.6,0.39624]
[1729792948597,0.39622,2525.7,2525.4,5.99173762]
[1729792948898,0.39622,2525.7,2525.5,0.39624]
[1729792949192,3.2078,2525.9,2525.4,5.99173762]
[1729792949401,0.39624,2525.6,2525.5,0.39625]
[1729792949589,0.39625,2525.6,2525.5,0.39625]
[1729792949790,0.39625,2525.6,2525.4,5.99173762]
[1729792949791,0.39625,2525.5,2525.4,6.38799762]
[1729792950013,0.82125,2525.5,2525.4,6.38799762]
[1729792950902,0.82125,2525.5,2525.4,3.60406]
[1729792951196,0.425,2525.5,2525.4,3.60406]
[1729792951599,0.39623,2525.7,2525.6,0.39624]
[1729792952089,4.99191167,2525.8,2525.7,0.39622]
[1729792952294,3.2078,2525.9,2525.8,0.39621]
[1729792952795,3.2078,2525.9,2525.8,7.13934762]
[1729792953500,3.2078,2525.9,2525.8,3.18014762]
[1729792953803,3.2078,2525.9,2525.8,7.13934762]
[1729792954000,0.82117,2526.1,2525.8,7.13934762]
[1729792954201,0.82117,2526.1,2526.0,0.39617]
[1729792954398,4.02897,2526.1,2526.0,0.39617]
[1729792956499,0.39617,2526.1,2526.0,0.39617]
[1729792956706,3.2078,2526.4,2525.8,3.18014762]
[1729792956707,0.39615,2526.2,2526.1,0.39613]
[1729792958205,4.99497969,2526.3,2526.2,0.39614]
[1729792959104,4.18033969,2526.3,2526.2,0.39614]
[1729792959299,3.2078,2526.4,2526.3,0.39613]
[1729792959499,3.60392,2526.4,2526.3,0.39613]
[1729792959695,0.39614,2526.3,2526.2,0.39614]
[1729792960399,0.418,2526.3,2525.9,0.4384]
[1729792960594,0.418,2526.3,2526.0,0.39615]
[1729792960595,0.39617,2526.1,2526.0,0.39615]
[1729792961798,0.39616,2526.2,2526.1,0.39614]
[1729792962605,3.60392,2526.4,2526.3,0.39613]
[1729792962902,3.2078,2526.7,2526.3,6.38786762]
[1729792963204,3.60386,2526.7,2526.6,0.39608]
[1729792963402,0.39606,2526.7,2526.6,0.39608]
[1729792964909,0.39611,2526.4,2526.3,0.39612]
[1729792965109,0.39614,2526.3,2526.2,0.39613]
[1729792965405,0.81244,2526.3,2526.2,0.39613]
[1729792965902,2.58434,2526.3,2526.2,0.39613]
[1729792966403,2.58434,2526.3,2526.1,0.39615]
[1729792966404,0.39616,2526.2,2526.1,0.39615]
[1729792966598,0.82806,2526.2,2526.1,0.39615]
[1729792966998,0.82806,2526.2,2526.0,3.2078]
[1729792966999,0.4319,2526.2,2526.0,3.2078]
[1729792967303,0.39616,2526.1,2526.0,3.2078]
[1729792968311,0.39616,2526.1,2526.0,3.60397]
[1729792969212,4.35456,2526.1,2526.0,1.8688]
[1729792969414,8.57302922,2526.1,2526.0,1.8688]
[1729792969715,0.39621,2525.8,2525.7,3.2078]
[1729792971110,8.93754706,2525.8,2525.7,3.2078]
[1729792971512,9.36934706,2525.8,2525.7,3.2078]
[1729792972407,9.77444706,2525.8,2525.7,3.2078]
[1729792972602,0.39628,2525.4,2525.3,0.39628]
[1729792973509,0.99059,2525.7,2525.2,3.2078]
[1729792973705,0.39627,2525.5,2525.4,0.39626]
[1729792975716,8.25806762,2525.8,2525.2,3.2078]
[1729792975910,0.39626,2525.5,2525.4,0.39626]
[1729792976314,4.38664825,2525.7,2525.2,3.2078]
[1729792976513,0.39627,2525.4,2525.3,0.39627]
[1729792976717,0.39626,2525.5,2525.4,0.39626]
[1729792977309,0.39628,2525.4,2525.3,0.39628]
[1729792980412,0.31328217,2525.6,2525.2,3.2078]
[1729792980618,0.31328217,2525.6,2525.0,0.39631]
[1729792980619,0.39632,2525.1,2525.0,0.39631]
[1729792981410,0.4441,2525.2,2524.9,4.0559]
[1729792981609,0.84041,2525.2,2525.1,0.39632]
[1729792985319,0.4441,2525.2,2524.9,3.2078]
[1729792985525,0.4441,2525.2,2524.9,0.39633]
[1729792985526,0.39636,2525.0,2524.9,0.39633]
[1729792985821,0.99084,2525.0,2524.6,0.4451]
[1729792986027,0.39638,2524.7,2524.6,0.84148]
[1729792986319,0.39638,2524.8,2524.7,0.39636]
[1729792986515,0.39638,2524.7,2524.6,0.39639]
[1729792987517,0.39641,2524.5,2524.4,0.39641]
[1729792987718,0.39643,2524.4,2524.3,0.39644]
[1729792987926,0.39643,2524.4,2524.2,0.39645]
[1729792987927,0.39644,2524.3,2524.2,0.39645]
[1729792988121,0.39646,2524.2,2524.1,0.82846]
[1729792988430,0.4322,2524.3,2524.1,0.432]
[1729792988636,0.82865,2524.3,2524.2,0.39646]
[1729792989523,0.4322,2524.3,2523.8,3.6098]
[1729792989827,0.39649,2524.1,2524.0,0.39648]
[1729792990223,0.4322,2524.3,2523.8,1.3933]
[1729792990427,0.39646,2524.2,2524.1,0.39646]
[1729792990627,4.03644,2524.3,2524.2,0.39646]
[1729792991021,0.39647,2524.2,2524.1,0.39646]
[1729792991525,4.03645,2524.3,2524.2,0.39646]
[1729792991928,12.35789674,2524.3,2524.2,0.39646]
[1729792992531,11.96144674,2524.3,2523.8,1.3933]
[1729792992729,8.39629674,2524.3,2524.2,0.39646]
[1729792993227,12.35789674,2524.3,2524.2,0.39646]
[1729792993629,12.35789674,2524.3,2523.8,1.3933]
[1729792993630,0.39646,2524.2,2524.1,0.39646]
[1729792993818,9.43274674,2524.3,2523.8,0.402]
[1729792994020,0.39647,2524.2,2524.1,0.39647]
[1729792994427,0.39648,2524.1,2524.0,0.39648]
[1729792995024,9.43274674,2524.3,2523.8,0.402]
[1729792995226,9.82919674,2524.3,2524.2,0.39646]
[1729792995730,9.43274674,2524.3,2524.2,0.39646]
[1729792995929,4.6407,2524.3,2524.2,0.39646]
[1729792996231,1.4329,2524.3,2524.2,0.39646]
[1729792999826,1.4329,2524.3,2524.1,0.8414]
[1729793000034,0.39647,2524.2,2524.1,0.39647]
[1729793001027,1.8484,2524.3,2523.8,2.2788]
[1729793001227,0.39649,2524.1,2524.0,0.39648]
[1729793001438,0.39647,2524.2,2524.1,0.39646]
[1729793001742,0.39646,2524.2,2524.1,0.39646]
[1729793002326,0.39647,2524.2,2524.1,0.39646]
[1729793008130,1.8484,2524.3,2523.8,2.2788]
[1729793008339,0.82139,2524.1,2524.0,0.39648]
[1729793009838,0.4249,2524.1,2524.0,0.39648]
[1729793011039,1.4329,2524.3,2524.2,0.39646]
[1729793017340,3.2078,2525.2,2524.2,7.1694]
[1729793017540,3.2078,2525.2,2525.0,0.39632]
[1729793017541,1.21233,2525.1,2525.0,0.39632]
[1729793017737,0.39634,2525.0,2524.9,0.39634]
[1729793017941,1.21232,2525.1,2525.0,0.39633]
[1729793019249,1.1557,2525.1,2525.0,0.39633]
[1729793019452,1.1557,2525.1,2524.9,0.39633]
[1729793019646,1.55203,2525.1,2525.0,0.39633]
[1729793022548,0.39634,2525.0,2524.9,0.39634]
[1729793023953,1.5631,2525.1,2524.7,0.99095]
[1729793024151,1.1557,2525.1,2525.0,0.39633]
[1729793024353,0.3397,2525.1,2525.0,0.39633]
[1729793025651,0.8835,2525.4,2525.0,3.96]
[1729793025851,0.8835,2525.4,2525.3,0.39628]
[1729793028661,0.8835,2525.4,2525.1,0.4122]
[1729793028959,1.27977,2525.4,2525.3,0.39628]
[1729793032461,0.8835,2525.4,2525.0,0.99083]
[1729793032765,0.39629,2525.3,2525.2,0.39629]
[1729793032961,1.27978,2525.4,2525.3,0.39628]
[1729793033166,0.3963,2525.3,2525.2,0.39629]
[1729793033962,0.39631,2525.2,2525.1,0.3963]
[1729793042969,0.408,2525.3,2524.9,0.99087]
[1729793043169,1.27978,2525.4,2525.3,0.39628]
[1729793043961,0.8835,2525.4,2525.3,0.39628]
[1729793044170,1.27977,2525.4,2525.3,0.39628]
[1729793044371,0.8835,2525.4,2525.3,0.39628]
[1729793046677,3.2078,2525.5,2525.4,0.39627]
[1729793046881,0.875,2525.7,2525.6,0.39624]
[1729793047476,0.81657,2526.1,2526.0,0.39617]
[1729793047783,0.8441,2526.1,2526.0,0.39617]
[1729793048287,1.71460078,2526.1,2526.0,1.68067078]
[1729793049588,0.4301,2526.1,2526.0,0.39617]
[1729793049795,1.71460078,2526.1,2526.0,0.39617]
[1729793050401,0.4301,2526.1,2526.0,0.39617]
[1729793050989,3.2078,2526.5,2526.4,0.39611]
[1729793052188,0.425,2526.6,2526.5,0.3961]
[1729793056894,0.82108,2526.6,2526.5,0.3961]
[1729793057193,0.425,2526.6,2526.5,0.3961]
[1729793058194,0.82108,2526.6,2526.5,0.3961]
[1729793058797,0.425,2526.6,2526.5,0.3961]
[1729793058987,0.82108,2526.6,2526.5,0.3961]
[1729793059191,0.425,2526.6,2526.5,0.3961]
[1729793061399,0.425,2526.6,2526.4,0.4307]
[1729793061400,3.58159786,2526.8,2526.7,0.39606]
[1729793061699,1.22475,2526.8,2526.7,0.39606]
[1729793061885,0.8287,2526.8,2526.7,0.39606]
[1729793062495,0.3961,2526.5,2526.4,0.3961]
[1729793062696,0.3961,2526.6,2526.5,0.39609]
[1729793063095,0.3961,2526.5,2526.4,0.39611]
[1729793063294,0.39613,2526.3,2526.2,0.39613]
[1729793063497,0.4234,2526.4,2526.0,0.4457]
[1729793063801,0.4406,2526.2,2525.8,0.4153]
[1729793064004,0.39617,2526.1,2526.0,0.39617]
[1729793066200,0.8665,2526.2,2525.8,0.4153]
[1729793066401,0.82149,2526.0,2525.9,0.39618]
[1729793066706,0.4253,2526.0,2525.9,0.39618]
[1729793067206,0.82147,2526.0,2525.9,0.39618]
[1729793067701,0.4253,2526.0,2525.9,0.39618]
[1729793068206,0.82147,2526.0,2525.9,0.39618]
[1729793068796,0.4253,2526.0,2525.9,0.39618]
[1729793069510,0.82147,2526.0,2525.9,0.39618]
[1729793070303,0.4253,2526.0,2525.9,0.39618]
[1729793070507,0.82147,2526.0,2525.9,0.39618]
[1729793071108,0.4253,2526.0,2525.9,0.39618]
[1729793071711,0.82147,2526.0,2525.9,0.39618]
[1729793074500,2.10609916,2526.0,2525.9,1.68080916]
[1729793075611,1.70992916,2526.0,2525.5,5.05863]
[1729793075907,1.68082916,2525.9,2525.8,1.68081916]
[1729793077015,0.4253,2526.0,2525.8,1.28462916]
[1729793077202,0.82147,2526.0,2525.9,1.68081916]
[1729793077605,2.10609916,2526.0,2525.9,1.68081916]
[1729793080607,1.70992916,2526.0,2525.9,1.68081916]
[1729793080808,0.4253,2526.0,2525.9,1.68081916]
[1729793082714,3.2078,2526.1,2526.0,0.39617]
[1729793082913,3.2078,2526.1,2526.0,1.68079916]
[1729793083121,0.4406,2526.2,2526.0,1.28462916]
[1729793083306,0.4406,2526.2,2526.1,1.68078916]
[1729793085720,0.83674,2526.2,2526.1,1.68078916]
[1729793086024,0.4406,2526.2,2526.1,1.68078916]
[1729793086425,0.83674,2526.2,2526.1,1.68078916]
[1729793086724,0.4406,2526.2,2526.1,1.68078916]
[1729793087115,0.83674,2526.2,2526.1,1.68078916]
[1729793087717,0.4406,2526.2,2526.1,1.68078916]
[1729793087922,1.72522916,2526.2,2526.1,1.68078916]
[1729793088423,2.12136916,2526.2,2526.1,1.68078916]
[1729793089227,1.72522916,2526.2,2526.1,1.68078916]
[1729793089524,2.12136916,2526.2,2526.1,1.68078916]
[1729793090125,1.72522916,2526.2,2526.1,1.68078916]
[1729793090324,1.72522916,2526.2,2526.1,0.39616]
[1729793090516,0.39617,2526.1,2526.0,0.39616]
[1729793090721,1.68079916,2526.1,2526.0,0.39616]
[1729793093827,1.74431247,2526.1,2526.0,0.39616]
[1729793094027,1.74431174,2526.1,2526.0,0.39616]
[1729793095920,1.68079916,2526.1,2526.0,0.39616]
[1729793096526,4.04455,2526.2,2526.1,0.39616]
[1729793096719,4.04455,2526.2,2526.1,1.68078916]
[1729793097526,0.83675,2526.2,2526.1,1.68078916]
[1729793097932,2.12137916,2526.2,2526.1,0.39616]
[1729793099036,1.72522916,2526.2,2526.0,1.68872916]
[1729793099235,0.39616,2526.1,2526.0,0.80026]
[1729793099436,1.68078916,2526.1,2526.0,0.39616]
[1729793100326,1.68075916,2526.3,2526.2,0.39613]
[1729793100532,2.09925916,2526.3,2526.2,0.39613]
[1729793103231,0.39616,2526.2,2526.1,0.39614]
[1729793103442,1.68078916,2526.2,2526.1,0.39614]
[1729793103632,1.70312916,2526.3,2525.9,2.27507916]
[1729793103830,2.09926916,2526.3,2526.2,0.39614]
[1729793104637,2.09926916,2526.3,2526.2,1.68076916]
[1729793104638,0.4185,2526.3,2526.2,1.68076916]
[1729793104838,0.4185,2526.3,2526.2,2.10236916]
[1729793105333,2.09925916,2526.3,2526.2,2.10236916]
[1729793105637,1.70312916,2526.3,2526.2,2.10236916]
[1729793106038,2.09925916,2526.3,2526.2,2.10236916]
[1729793106335,2.09925916,2526.3,2525.9,0.99045]
[1729793106541,1.68078916,2526.2,2526.1,0.39614]
[1729793106730,1.68078916,2526.2,2525.9,0.99045]
[1729793106731,0.39619,2526.0,2525.9,0.39617]
[1729793107037,1.68078916,2526.1,2526.0,0.39617]
[1729793107640,1.68077916,2526.2,2526.1,0.39616]
[1729793108642,1.70312916,2526.3,2526.2,0.39614]
[1729793109335,2.09925916,2526.3,2526.2,0.39614]
[1729793110836,2.09925916,2526.3,2525.8,1.82451]
[1729793110837,5.66152916,2526.3,2525.8,1.82451]
[1729793111044,1.68080916,2526.1,2526.0,0.39616]
[1729793112137,1.28462916,2526.1,2526.0,0.39616]
[1729793112341,3.6039,2526.5,2526.4,0.39611]
[1729793112536,4.88852916,2526.5,2526.4,0.39611]
[1729793113138,4.49242916,2526.5,2526.2,1.71912916]
[1729793113339,1.68074916,2526.4,2526.3,0.39611]
[1729793113844,1.28462916,2526.4,2526.0,2.27505916]
[1729793114044,1.68076916,2526.3,2526.2,0.39613]
[1729793114439,1.28462916,2526.3,2526.2,1.68075916]
[1729793114943,1.68075916,2526.3,2526.2,1.68075916]
[1729793115643,1.68075916,2526.3,2526.2,0.39613]
[1729793122557,2.06086638,2526.3,2526.2,0.39613]
[1729793122756,0.39616,2526.2,2526.1,0.39615]
[1729793123053,2.97958916,2526.2,2526.1,0.39615]
[1729793123886,6.18738916,2526.2,2526.1,0.39615]
[1729793124587,0.39617,2526.1,2526.0,0.39616]
[1729793124783,1.68079916,2526.1,2526.0,0.39616]
[1729793127186,1.68079916,2526.1,2526.0,1.68078916]
[1729793128387,2.38369916,2526.1,2526.0,1.68078916]
[1729793130282,2.70029916,2526.1,2526.0,1.68078916]
[1729793131235,2.30412916,2526.1,2526.0,1.68078916]
[1729793131496,1.0195,2526.1,2526.0,5.63918916]
[1729793131701,0.8547,2526.5,2526.4,0.39611]
[1729793131987,3.60388,2526.6,2526.5,0.3961]
[1729793131988,4.49242916,2526.6,2526.5,0.3961]
[1729793132184,3.2078,2526.6,2526.5,5.63832916]
[1729793132791,3.2078,2526.6,2526.5,1.68072916]
[1729793133496,3.7354,2526.6,2526.5,1.68072916]
[1729793133792,5.30062916,2526.6,2526.5,1.68072916]
[1729793135289,5.30062916,2526.6,2526.5,0.3961]
[1729793135789,0.39611,2526.5,2526.4,0.3961]
[1729793135989,1.68073916,2526.5,2526.4,0.3961]